Cogmind - Beta 16 @@@ ROGUE MODE // 2025.12.01 @ 11:38:03 Player: Jamba27 Result: Destroyed by as-24624 with Assembled Heavy Rifle Performance ------------- Evolutions (0) 0 Regions Visited (2) 400 Robots Destroyed (8) 40 Value Destroyed (161) 161 Prototype IDs (0) 0 Alien Tech Used (0) 0 Bonus (0) 0 TOTAL SCORE: 601 Bonus ------- None Cogmind --------- Core Integrity 0/250 Matter 284/300 Energy 84/100 System Corruption 11% Temperature Cool (21) Movement Treading (240) Ox1 Location -10/Mines Parts ------- > --- POWER (1) -------- (None) > --- PROPULSION (2) --- Light Treads > --- UTILITY (2) ------ Large Storage Unit Improved Terrain Scanner > --- WEAPON (2) ------- Light Assault Rifle Mining Claw > --- INVENTORY (15) --- Light Ion Engine Light Ion Engine Light Ion Engine Light Treads Light Treads Wheel Wheel Small Storage Unit Huge Storage Unit Seismic Detector Hacking Suite Mining Laser Peak State ------------ > --- POWER ------------ Light Ion Engine > --- PROPULSION ------- Light Treads Light Treads > --- UTILITY ---------- Huge Storage Unit Improved Terrain Scanner > --- WEAPON ----------- Light Assault Rifle Light Assault Rifle > --- INVENTORY -------- Light Ion Engine Light Ion Engine Wheel Wheel Small Storage Unit Seismic Detector Hacking Suite Mining Laser [Rating: 10] Favorites ----------- Power Light Ion Engine Engine Light Ion Engine Propulsion Light Treads Treads Light Treads Wheel Wheel Utility Improved Terrain Scanner Device Improved Terrain Scanner Storage Huge Storage Unit Weapon Assault Rifle Ballistic Gun Assault Rifle Slashing Weapon Mining Claw Build | -11 -10 -10 ------- Run | Yrd Mat Min Slots Evolved . | . . . Power . | . . . Propulsion . | . . . Utility . | . . . Weapon . | . . . Parts Attached 14 | 6 8 . Power 1 | 1 . . Engine 1 | 1 . . Core . | . . . Reactor . | . . . Propulsion 4 | 2 2 . Treads 2 | 2 . . Leg . | . . . Wheel 2 | . 2 . Hover . | . . . Flight . | . . . Utility 4 | 1 3 . Device 1 | . 1 . Storage 3 | 1 2 . Processor . | . . . Hackware . | . . . Protection . | . . . Artifact . | . . . Weapon 5 | 2 3 . Energy Gun . | . . . Energy Cannon . | . . . Ballistic Gun 4 | 2 2 . Ballistic Cannon . | . . . Launcher . | . . . Special Weapon . | . . . Impact Weapon . | . . . Slashing Weapon 1 | . 1 . Piercing Weapon . | . . . Special Melee Weapon . | . . . Unidentified Prototypes . | . . . Parts Lost 6 | . 2 4 Power 1 | . . 1 Propulsion 2 | . . 2 Utility . | . . . Weapon 3 | . 2 1 Highest Loss Streak 4 | . 2 4 To Critical Strikes . | . . . Average Backups 7 | 2 8 13 Power 1 | . 2 3 Propulsion 1 | . 1 4 Utility 2 | . 2 4 Weapon 1 | . 1 1 Tool/Special . | . . . Unused Backups 8 | . . 8 Power 2 | . . 2 Propulsion 3 | . . 3 Utility 2 | . . 2 Weapon 1 | . . 1 Tool/Special . | . . . Average Slot Usage (%) 98 | . 99 93 Engine 13 | . 14 9 Treads 15 | . 17 1 Wheel 12 | . 10 24 Device 14 | . 14 14 Storage 14 | . 14 14 Ballistic Gun 24 | . 26 14 Slashing Weapon 2 | . 1 14 Peak Build Rating 10 | 6 10 10 Average Rating 8 | 5 9 9 On Entrance 5 | . 6 10 Avg Prop Armor Cover (%) . | . . . Naked Turns . | . . . Heaviest Build 88 | 12 88 27 Greatest Support 40 | 40 40 20 Greatest Overweight (x) 4 | . 4 2 Average Overweight (x) 1 | . 2 1 Largest Inventory Capacity 25 | 8 25 15 Average Capacity 19 | 7 21 15 Most Carried 14 | 5 14 14 Average Carried 7 | 2 8 13 Final Capacity 15 | 8 15 15 Final Carried 14 | 5 14 12 Class Distribution -------------------- 100% | Mutant Dominant Class ---------------- Mutant | -10/Materials Mutant | -10/Mines Resources | -11 -10 -10 ----------- Run | Yrd Mat Min Matter Collected 461 | 302 104 55 Remotely . | . . . Salvage Created 317 | 120 159 38 Parts 14 | 7 7 . Haulers Intercepted . | . . . Recyclers Shooed . | . . . Parts Field Recycled . | . . . Retrieved Matter . | . . . Parts Self-Destructed . | . . . Prevented . | . . . Parts Restored . | . . . Kills | -11 -10 -10 ------- Run | Yrd Mat Min Combat Hostiles Destroyed 7 | . 4 3 Melee 3 | . . 3 Guns 4 | . 4 . Classes Destroyed 6 | 2 3 1 Tunneler 2 | 2 . . Recycler 1 | 1 . . Operator 1 | . 1 . Swarmer 1 | . 1 . Grunt 3 | . 3 . Assembled 3 | . . 3 Best Kill Streak 2 | 2 2 2 Combat Bots Only 2 | . 2 2 Max Kills in Single Turn 1 | 1 1 1 Gunslinging . | . . . Exploded . | . . . Melee 1 | . . 1 Uniques/NPCs Destroyed . | . . . Combat | -11 -10 -10 -------- Run | Yrd Mat Min Hostile Shots Fired 77 | . 33 44 Missed 24 | . 11 13 Hits 53 | . 22 31 Melee 7 | . . 7 Projectile 46 | . 22 24 Damage Taken 1010 | . 525 485 Core 255 | . 104 151 Absorbed by Shields . | . . . Core Remaining (%) 100 | 100 . . Volleys Fired 28 | 7 20 1 Largest 2 | 2 2 1 Hottest 40 | 40 40 20 Shots Fired 55 | 14 40 1 Gun 55 | 14 40 1 Cannon . | . . . Launcher . | . . . Special . | . . . Kinetic 55 | 14 40 1 Thermal . | . . . Explosive . | . . . Electromagnetic . | . . . Robot Hit Streak 6 | 6 5 6 Robot Miss Streak 3 | 1 3 . Penetration Max . | . . . Secondary Targets 2 | . 2 . Max Gunslinging Chain 1 | . 1 . Shots Hit Robots 40 | 11 24 5 Core Hits 17 | 4 10 3 Critical Kills . | . . . Critical Parts Destroyed . | . . . Critical Strikes . | . . . Melee Attacks 13 | . 4 9 Impact . | . . . Slashing 13 | . 4 9 Piercing . | . . . Sneak Attacks 1 | . 1 . Combat Hostiles . | . . . Follow-up Attacks . | . . . Damage Inflicted 517 | 137 255 125 Guns 398 | 137 255 6 Cannons . | . . . Explosions . | . . . Melee 119 | . . 119 Ramming . | . . . Kinetic 398 | 137 255 6 Thermal . | . . . Explosive . | . . . Electromagnetic . | . . . Impact . | . . . Slashing 119 | . . 119 Piercing . | . . . Highest Corruption 11 | . 1 11 Average Corruption 1 | . 1 2 Corruption Purged . | . . . Corruption Blocked . | . . . Effects 2 | . 1 1 Message Errors 1 | . . 1 Data Loss (minor) 1 | . 1 . Overload Shots . | . . . Overflow Damage . | . . . Projectiles . | . . . Explosions . | . . . Melee . | . . . Knockbacks . | . . . Impact . | . . . Kinetic . | . . . Secondary . | . . . Self-Inflicted Damage . | . . . Shots . | . . . Rammed . | . . . Targets Rammed . | . . . Kicked . | . . . Crushed . | . . . Highest Temperature 17 | . 17 15 Average Temperature 7 | . 5 15 Received Heat Transfer 365 | . 105 260 Siege Activations . | . . . Martial Activations . | . . . Shielding Activations . | . . . Robots Disrupted . | . . . Combat Hostiles . | . . . Robots Corrupted . | . . . Combat Hostiles . | . . . Parts Fried . | . . . Impact Corruptions . | . . . Robots Melted . | . . . Combat Hostiles . | . . . Parts Melted . | . . . Heat Transferred . | . . . Parts Sabotaged . | . . . Parts Stolen . | . . . Parts Stripped . | . . . Power Chain Reactions . | . . . Alert | -11 -10 -10 ------- Run | Yrd Mat Min Maximum Alert Level . | . . . Low Security (%) 100 | 100 100 100 Level 1 . | . . . Level 2 . | . . . Level 3 . | . . . Level 4 . | . . . Level 5 . | . . . High Security . | . . . Max Security . | . . . Peak Influence 50 | 10 50 . Initial . | . . . Average 5 | 1 6 . Influence Increases 139 | 15 124 . Destroy 0b10 Robot/C 80 | . 80 . Destroy 0b10 Robot/NC 20 | 15 5 . Destroy Leader 20 | . 20 . Successful Hack 18 | . 18 . Destroy Structure 1 | . 1 . Influence Decreases 139 | 15 124 . Time Decay 119 | 15 104 . Lost Part 20 | . 20 . Squads Dispatched 1 | . 1 . Investigation . | . . . Extermination . | . . . Reinforcement 1 | . 1 . Assault . | . . . Garrison . | . . . Intercept . | . . . Searches Triggered . | . . . Construction Impeded . | . . . Haulers Reinforced . | . . . Active Scanning Responses . | . . . Cargo Convoy Interrupts . | . . . Stealth | -11 -10 -10 --------- Run | Yrd Mat Min Distress Signals 2 | . 2 . Communications Jammed . | . . . Distress Signals . | . . . Times Spotted 23 | . 18 5 Peak Tracking Total 18 | . 6 18 Tactical Retreats 1 | . . 1 Traps | -11 -10 -10 ------- Run | Yrd Mat Min Traps Triggered 2 | . 2 . Indirectly . | . . . Trap Hack Attempts . | . . . Triggered . | . . . Disarmed . | . . . Reprogrammed . | . . . Reused . | . . . Traps Extracted . | . . . Installed . | . . . Triggered . | . . . Machines | -11 -10 -10 ---------- Run | Yrd Mat Min Machines Disabled . | . . . Max in Single Turn . | . . . Machines Repaired . | . . . Machines Dismantled . | . . . Machines Sabotaged . | . . . Overloaded Fab Kills . | . . . Hacking | -11 -10 -10 --------- Run | Yrd Mat Min Machines Accessed 4 | . 4 . Terminals 4 | . 4 . Fabricators . | . . . Repair Stations . | . . . Recycling Units . | . . . Scanalyzers . | . . . Garrison Access . | . . . Total Hacks 8 | . 8 . Successful 5 | . 5 . Failed 3 | . 3 . Catastrophic . | . . . Database Lockouts . | . . . Manual 8 | . 8 . Terminals 8 | . 8 . Fabricators . | . . . Repair Stations . | . . . Recycling Units . | . . . Scanalyzers . | . . . Garrison Access . | . . . Terminal Hacks 1 | . 1 . Zone Layout 1 | . 1 . Fabricator Hacks . | . . . Repair Station Hacks . | . . . Recycling Unit Hacks . | . . . Scanalyzer . | . . . Garrison Access Hacks . | . . . Unauthorized Hacks 4 | . 4 . Terminals 4 | . 4 . Operators 1 | . 1 . Skim 3 | . 3 . Fabricators . | . . . Repair Stations . | . . . Recycling Units . | . . . Scanalyzers . | . . . Garrison Access . | . . . Data Cores Recovered . | . . . Used . | . . . Hacking Detections 3 | . 3 . Full Trace Events . | . . . Feedback Events . | . . . Feedback Blocked . | . . . Robot Schematics Acquired . | . . . Robots Built . | . . . Authchips . | . . . Time . | . . . Total Robot Build Rating . | . . . Part Schematics Acquired . | . . . Parts Built . | . . . Authchips . | . . . Time . | . . . Total Part Build Rating . | . . . Part Studies Acquired . | . . . Parts Repaired . | . . . Time . | . . . Parts Recycled . | . . . Recycled Matter . | . . . Retrieved Matter . | . . . Retrieved Components . | . . . Parts Scanalyzed . | . . . Part Schematics Acquired . | . . . Parts Damaged . | . . . Bothacking | -11 -10 -10 ------------ Run | Yrd Mat Min Used RIF Installer . | . . . Robots Hacked . | . . . Non-combat . | . . . Combat . | . . . Robot Hacks Applied . | . . . Relay Couplers Released . | . . . Fabnet Peak Effective % . | . . . Robots Rewired . | . . . Allies Hacked . | . . . Hacks Repelled . | . . . Allies | -11 -10 -10 -------- Run | Yrd Mat Min Total Allies . | . . . Largest Group . | . . . Highest-Rated Group . | . . . Highest-Rated Ally . | . . . Total Orders . | . . . Ally Attacks . | . . . Total Damage . | . . . Kills . | . . . Allies Corrupted . | . . . Allies Melted . | . . . Intel | -11 -10 -10 ------- Run | Yrd Mat Min Active Infowar (turns) 842 | . 755 87 Terrain 842 | . 755 87 Robot Analysis Total . | . . . Derelict Logs Recovered . | . . . Drone Launches . | . . . Drone Recoveries . | . . . Exploration | -11 -10 -10 ------------- Run | Yrd Mat Min Turns Passed 966 | 124 755 87 Spaces Moved 467 | 59 349 59 Core 4 | 4 . . Treads 216 | 55 160 1 Legs . | . . . Wheels 247 | . 189 58 Hover . | . . . Flight . | . . . Fastest Speed 50 | 50 95 95 Average Speed 173 | 152 189 98 Slowest Speed 320 | 160 320 240 Overloaded Moves . | . . . Propulsion Burnouts . | . . . Robots Hopped . | . . . Potential Cave-ins . | . . . Cave-ins Triggered . | . . . Exploration Rate (%) 28 | 4 63 19 Regions Visited 2 Branch Regions 1 Pre-discovered Areas . | . . . Known Exits Taken . | . . . Unknown Exits Taken 2 | 1 1 . Scrap Searched 1 | . . 1 Spaces Dug 1 | . 1 . Terrain Destroyed 1 | . 1 . Melee 1 | . 1 . Projectile . | . . . AOE . | . . . Terrain Rammed . | . . . Walls Destroyed . | . . . Machines Disabled . | . . . Actions | -11 -10 -10 --------- Run | Yrd Mat Min Total 540 | 76 393 71 Wait 2 | . 2 . Move 465 | 58 348 59 Hop . | . . . Pick Up 16 | 5 11 . Fast Attach 6 | 6 . . Attach 5 | . 3 2 Detach . | . . . Swap 5 | . 5 . Drop . | . . . Fire 28 | 7 20 1 Melee 13 | . 4 9 Ram . | . . . Kick . | . . . Crush . | . . . Escape Stasis . | . . . Rewire . | . . . Trap . | . . . Miscellaneous . | . . . Route ------- -11/Scrapyard -10/Materials (discovered 3 exits: [*Mat] / [*Min x2]) -10/Mines History --------- Turn | Location | Event 11 | -11/Scrapyard | Discovered new exit (range 15) 125 | -11/Scrapyard | Entered Materials 213 | -10/Materials | Discovered new exit (range 16) 292 | -10/Materials | Discovered new exit (range 17) 308 | -10/Materials | Build established: Mutant 574 | -10/Materials | Discovered new exit (range 9) 825 | -10/Materials | Derelicts attacked the area 880 | -10/Materials | Entered Mines 881 | -10/Mines | Assembled infested the area 942 | -10/Mines | Core integrity fell below 50% 962 | -10/Mines | Core integrity fell below 20% 964 | -10/Mines | System corruption reached 10% 967 | -10/Mines | Destroyed by as-24624 with Assembled Heavy Rifle Last Messages --------------- GOAL=ESCAPE Something is scanning the area. 00881_ ALERT: Infestation in the mines, dispatching Demolisher response squad. 00899_ GZZ INHBP4RLMBLZNA>AK 00921_ Searching scrap... 00921_ Found Med. Laser. 00921_ Found 55 Matter. 00922_ Acquired 55 matter. 00931_ Lgt. Ion Engine destroyed. 00935_ as-85957 destroyed. 00937_ Core Extractor disabled. 00942_ as-77333 destroyed. 00946_ Wheel destroyed. 00946_ System corrupted by crushing effect (+5). 00946_ Knocked back. 00951_ Lgt. Assault Rifle destroyed. 00963_ Wheel destroyed. 00963_ System corrupted by crushing effect (+5). 00964_ as-05324 destroyed. Map ----- +----------------------------------------------------+ | | | | | | | | | | | | | | | ?????????????????????????????????????????????????? | | ??????????????#??????????????????????????????????? | | ?????????????????????????????????????????????????? | | ??????????????? ?????????????#???????#???????????? | | ???????????? ????????????????############?????#??? | | ??????????????????############ ##???????? | | ???????????????????# ##??????? | | ???????????????????# ##?????? | | ???????????????????# ######## """" #?????? | | ???????????????????# #??????##### """" #?????? | | ???????????????????# ##????????### """" ###???? | | ???????????????????# #?????????### ##???? | | ???????????????????# #??????????# ##??? | | ????????? ?????????# #?#??#????# ##?? | | ???????????????????# ##????????# ### | | ????????????#????### [ ##???????## ### ### | | ?????????? ??#????# ##??#????####?# #?## | | ??????????????#???## ##???????????#$ #??# | | ???????????????????## @##?????#????# #??## | | ???????????????????## "" %a####???##??# #???## | | ???????????????#???# """ a ##??????# ????#### | | ???????????????????# " % #??????# ????????? | | ???????????????????# % #?????? ????????? | | ????????????##?????# ### #??#??? $?????????? | | ???????????????#??### ##?## ##?????? ?????????? | | ?????????????????#??####????###??????????????????? | | ?????????????????????????????????????????????????? | | ?????????#???"????????????#??????????????????????? | | ??????????????????????????????????????????#??????? | | ????????? ???????????????????????????????????????? | | ?????????????????? ????#?????????????????????????? | | ??????????????????? ?????????????????????????????? | | ????????????????? ??????? ???????????????????????? | | ?????????????????????????????????????????????????? | | ???????????????????????????##?#??????????????????? | | ?????????????????#???????????????????????????????? | | ?????????????????????????????????????????????????? | | ?????????????????????????????????????????????????? | | ?????????????????????????????????????????????????? | | ?????????????????????????????????????????????????? | | ?????????????????????????????????????????????????? | | ?????????????????????????????????????????????????? | | ?????????????????????????????????????????????????? | +----------------------------------------------------+ Best States ------------- Heat Dissipation 25 Energy Generation 10 Energy Capacity 125 Matter Stores 300 Matter Capacity 300 Sight Range 16 Terrain Scan Range 16 Terrain Scan Density 10 Evasion (%) 41 Recoil Reduction 2 Item Schematics ----------------- None Robot Schematics ------------------ None Fabricated ------------ Nothing Repaired ---------- Nothing Studied --------- None Alien Tech Used ----------------- None Achievements -------------- None Challenges ------------ None Game ------ Seed VariableAssemblyDirector Manual? 0 Play Time 00:11:47 Cumulative 41.7 hours Start 2025.12.01 @ 11:23:00 End 2025.12.01 @ 11:38:03 Sessions 1 Manual Loads 0 Difficulty Rogue Special Mode None Game No. 35 Rogue 35 Adventurer 0 Explorer 0 Win Type - Total 0 Types 0/0/0/0/0/0/0/0/0/0 Lore% 23 Gallery% 34 Achievement% 28 Wizard Run 0 Options --------- Layout 1 ASCII 0 Keyboard 0 Movement Mouse Keybinds 0 Fullscreen 1 Font 24/Smallcaps Map View 50x35 Zoom Use 0% Tactical HUD 1 Map Filters NONE Filters NONE Steam 1 RUN: e574963f-2d36-4901-b92c-a4739ab75983